bitfinex/quotes_SOLUSD_20220210
["timestamp","ask_amount","ask_price","bid_price","bid_amount"]
[1644506399710,14.76136799,111.09,111.0,13.5092]
[1644506399908,14.76136799,111.09,111.0,55.42169238]
[1644506400107,14.76136799,111.09,111.0,41.91249238]
[1644506400310,13.509,111.09,111.0,41.91249238]
[1644506400507,4.502,111.08,111.0,41.91249238]
[1644506400707,1.25236799,111.09,111.0,41.91249238]
[1644506400909,14.76456799,111.09,111.0,41.91249238]
[1644506401110,14.76456799,111.09,111.0,42.16249238]
[1644506401309,4.502,111.08,111.0,0.25]
[1644506401509,4.752,111.08,110.96,12.58451293]
[1644506402011,6.00436799,111.08,110.96,18.58451293]
[1644506402212,4.502,111.08,110.97,41.90534828]
[1644506402412,13.5106,111.07,110.97,55.41894828]
[1644506402611,52.28776799,111.1,110.98,1.66045298]
[1644506402814,51.0354,111.1,110.98,1.91045298]
[1644506403309,13.5097,111.09,111.0,13.5087]
[1644506403512,13.5097,111.09,110.99,12.33045298]
[1644506403710,13.5097,111.09,111.01,1.66045298]
[1644506403911,1.25236799,111.12,111.02,35.87307261]
[1644506404112,1.25236799,111.14,111.02,46.54307261]
[1644506404314,1.25236799,111.15,111.03,1.66045298]
[1644506404512,13.504,111.13,111.03,1.66045298]
[1644506404712,5.75336799,111.12,110.97,10.67]
[1644506404934,1.25236799,111.09,110.96,45.7502]
[1644506405130,7.25236799,111.09,110.93,24.80825298]
[1644506405331,4.503,111.08,110.93,29.1478]
[1644506405530,18.65658953,111.08,110.94,39.8259623]
[1644506405731,2.23122154,111.07,110.94,39.8259623]
[1644506405930,13.518,111.03,110.94,39.8259623]
[1644506406334,13.768,111.03,110.94,41.48641528]
[1644506406534,13.768,111.03,110.94,45.8259623]
[1644506406733,13.768,111.03,110.94,39.8259623]
[1644506407134,13.768,111.03,110.89,13.2656]
[1644506407135,15.99922154,111.03,110.89,13.2656]
[1644506407335,13.5249,111.0,110.88,23.3582]
[1644506407536,4.506,110.99,110.88,23.3582]
[1644506407732,6.73722154,110.99,110.88,23.3582]
[1644506407932,2.48122154,110.99,110.88,23.3582]
[1644506408135,2.48122154,110.99,110.89,37.23513092]
[1644506408332,18.0315,110.98,110.89,37.23513092]
[1644506408532,18.0315,110.98,110.89,37.48513092]
[1644506408735,18.2815,110.98,110.89,37.48513092]
[1644506409533,13.7755,110.98,110.89,37.48513092]
[1644506410734,19.7755,110.98,110.89,37.48513092]
[1644506410935,19.7755,110.98,110.89,51.00803092]
[1644506411135,19.7755,110.98,110.89,37.48513092]
[1644506411334,19.5255,110.98,110.89,43.48513092]
[1644506411536,6.0,110.98,110.89,43.48513092]
[1644506411737,1.25236799,111.05,110.89,45.1455839]
[1644506411934,65.51296799,111.07,110.95,34.60552651]
[1644506412137,59.7556,111.07,110.95,34.60552651]
[1644506412338,35.3663,111.07,110.96,1.66045298]
[1644506412535,49.5448,111.09,110.96,1.66045298]
[1644506412740,1.25236799,111.1,110.96,18.58045298]
[1644506412935,4.503,111.1,110.96,18.58045298]
[1644506413135,4.503,111.1,110.98,13.5113]
[1644506413334,4.503,111.1,110.99,34.84573925]
[1644506413736,4.503,111.1,110.99,35.09573925]
[1644506414134,13.5094,111.09,110.96,19.5134]
[1644506414335,4.503,111.08,110.98,0.25]
[1644506415135,13.5115,111.07,110.98,13.7621]
[1644506415338,13.7615,111.07,110.98,15.42255298]
[1644506415536,13.7615,111.07,110.98,13.7621]
[1644506415739,13.7615,111.07,110.98,15.42255298]
[1644506416337,13.7615,111.07,110.98,21.42255298]
[1644506417041,13.7615,111.07,110.98,13.7621]
[1644506417638,13.7615,111.07,110.98,19.7621]
[1644506419142,13.5115,111.07,110.98,19.7621]
[1644506419341,13.5094,111.09,111.01,13.5084]
[1644506419542,13.5094,111.09,111.02,35.40910074]
[1644506419740,13.5094,111.09,111.02,35.65910074]
[1644506420146,1.25236799,111.13,111.02,37.31955372]
[1644506420349,13.505,111.13,111.02,41.65910074]
[1644506420547,5.75336799,111.15,111.06,46.86092256]
[1644506420749,1.25236799,111.16,111.06,47.11092256]
[1644506420947,47.71516799,111.18,111.06,53.11092256]
[1644506421146,1.25236799,111.18,111.06,53.11092256]
[1644506421346,2.23122154,111.17,111.06,47.11092256]
[1644506421547,4.499,111.16,111.06,60.61262256]
[1644506421745,4.749,111.16,111.06,47.11092256]
[1644506422146,6.00136799,111.16,111.06,47.11092256]
[1644506422550,20.48262154,111.16,111.06,47.11092256]
[1644506422953,5.75136799,111.16,111.06,47.11092256]
[1644506423151,74.73006799,111.19,111.06,53.11092256]
[1644506423450,14.75216799,111.18,111.06,1.66045298]
[1644506423653,4.499,111.17,111.02,19.02036061]
[1644506423851,1.25236799,111.16,111.02,16.67]
[1644506424252,1.50236799,111.16,111.02,16.67]
[1644506424451,0.25,111.16,111.02,16.67]
[1644506424753,0.25,111.16,111.03,44.42372025]
[1644506424952,4.75,111.16,111.03,44.42372025]
[1644506425153,4.75,111.16,111.03,50.67372025]
[1644506425754,18.2549,111.16,111.04,1.66045298]
[1644506425953,18.2549,111.16,111.04,7.66045298]
[1644506426153,0.25,111.16,111.04,18.58045298]
[1644506426352,7.50236799,111.18,111.05,1.66045298]
[1644506426554,102.70076799,111.19,111.05,1.66045298]
[1644506426754,1.25236799,111.18,111.05,7.91045298]
[1644506426955,4.499,111.17,111.05,21.41195298]
[1644506427154,4.499,111.17,111.06,1.66045298]
[1644506427355,4.499,111.17,111.03,52.77408086]
[1644506427557,1.25236799,111.16,111.03,44.42372025]
[1644506427754,5.75236799,111.15,111.03,48.76326727]
[1644506427954,1.25236799,111.16,111.04,1.66045298]
[1644506428157,11.92236799,111.18,111.04,1.66045298]
[1644506428355,0.25,111.16,111.04,7.66045298]
[1644506428755,0.25,111.16,111.05,1.66045298]
[1644506428956,0.25,111.16,111.04,6.25]
[1644506429155,4.5,111.15,111.05,13.5018]
[1644506429356,13.5034,111.16,111.05,19.7518]
[1644506429758,13.5034,111.16,111.07,46.29948833]
[1644506430257,13.5034,111.16,111.07,46.54948833]
[1644506430660,28.6709,111.18,111.07,46.54948833]
[1644506430857,30.4209,111.18,111.07,46.54948833]
[1644506431262,4.499,111.17,111.07,46.54948833]
[1644506431460,16.92,111.18,111.07,46.54948833]
[1644506431660,0.25,111.17,111.07,46.54948833]
[1644506431861,6.25,111.18,111.07,46.29948833]
[1644506432262,13.5018,111.17,111.03,36.6735]
[1644506432461,4.5,111.16,111.03,23.1696]
[1644506432662,6.73122154,111.16,111.03,29.1696]
[1644506432862,4.75,111.16,111.03,29.1696]
[1644506433265,2.23122154,111.15,111.04,45.7641034]
[1644506433465,4.5,111.14,111.04,45.7641034]
[1644506433665,13.5072,111.13,111.04,46.0141034]
[1644506433863,13.7572,111.13,111.04,46.0141034]
[1644506435064,15.98842154,111.13,111.04,45.7641034]
[1644506435663,21.98842154,111.13,111.04,45.7641034]
[1644506436065,26.48942154,111.13,111.04,45.7641034]
[1644506436564,26.48942154,111.13,111.01,13.5066]
[1644506436766,26.93942154,111.13,110.97,24.2537]
[1644506436967,10.67,111.12,110.97,13.5837]
[1644506437166,13.5135,111.1,110.97,13.5837]
[1644506437566,13.7635,111.1,110.98,41.37216586]
[1644506437967,13.7635,111.1,110.98,54.88266586]
[1644506438167,13.7635,111.1,110.98,47.37216586]
[1644506438469,13.7635,111.1,110.98,62.95596145]
[1644506438470,0.25,111.1,110.98,62.95596145]
[1644506438687,0.25,111.1,110.98,49.03261884]
[1644506438886,4.752,111.11,110.98,49.03261884]
[1644506439086,0.25,111.11,110.98,49.03261884]
[1644506439286,13.7573,111.12,111.0,13.5082]
[1644506439687,13.7573,111.12,111.0,19.5082]
[1644506439889,2.23122154,111.11,111.0,13.5082]
[1644506440087,6.73322154,111.11,110.98,55.29550847]
[1644506440289,47.51922154,111.11,110.98,47.37216586]
[1644506440489,18.0126,111.1,110.98,47.37216586]
[1644506440787,31.16382154,111.1,110.98,41.37216586]
[1644506441089,2.23122154,111.09,110.98,41.37216586]
[1644506441287,45.0588,111.06,110.98,41.37216586]
[1644506441493,13.5177,111.05,110.92,14.70164158]
[1644506441689,20.25392154,111.05,110.92,14.70164158]
[1644506441988,2.23122154,111.04,110.92,13.5177]
[1644506442187,0.25,111.05,110.93,1.6605485]
[1644506442388,0.25,111.05,110.94,38.23508234]
[1644506442788,0.25,111.05,110.95,13.5144]
[1644506443189,0.25,111.05,110.95,19.5144]
[1644506443388,13.7659,111.06,110.95,21.4249485]
[1644506443789,13.7659,111.06,110.95,19.7644]
[1644506444092,13.7659,111.06,110.95,0.25]
[1644506444291,13.7659,111.06,110.94,44.23508234]
[1644506444689,13.5175,111.04,110.94,44.23508234]
[1644506444893,18.2705,111.04,110.94,45.89563084]
[1644506445089,0.25,111.04,110.94,59.41143084]
[1644506445290,0.25,111.04,110.94,45.89563084]
[1644506445491,54.6139,111.07,110.94,150.23897345]
[1644506445892,13.5133,111.08,110.94,150.23897345]
[1644506446097,13.5133,111.08,110.94,162.81146814]
[1644506446495,19.5133,111.08,110.95,13.5146]
[1644506446893,19.5133,111.08,110.96,1.6605485]
[1644506446894,6.0,111.08,110.96,1.6605485]
[1644506447096,13.511,111.1,110.96,7.6605485]
[1644506447295,19.511,111.1,110.96,22.57778]
[1644506447496,19.511,111.1,110.97,1.6605485]
[1644506447693,19.511,111.1,110.98,44.15902954]
[1644506447894,19.511,111.1,110.98,50.40902954]
[1644506448095,2.23122154,111.09,110.99,1.6605485]
[1644506448298,4.502,111.08,110.98,44.15902954]
[1644506448495,4.502,111.08,110.92,11.85394158]
[1644506448496,13.5162,111.05,110.92,10.67]
[1644506448700,4.505,111.04,110.9,0.024]
[1644506448897,10.67,111.03,110.89,0.024]
[1644506449097,4.506,111.02,110.89,0.024]
[1644506449296,4.506,111.02,110.86,0.024]
[1644506449297,10.67,111.01,110.86,0.024]
[1644506449595,13.5246,111.0,110.89,0.024]
[1644506449794,13.5246,111.0,110.87,16.35178]
[1644506450200,13.7746,111.0,110.87,22.35178]
[1644506450397,13.7746,111.0,110.87,35.87588]
[1644506450598,4.507,110.99,110.87,34.2153315]
[1644506450797,13.5252,110.98,110.87,35.85188]
[1644506451098,13.5252,110.98,110.87,34.1913315]
[1644506451299,13.7752,110.98,110.87,34.1913315]
[1644506451501,13.7752,110.98,110.87,20.6672315]
[1644506451798,30.4452,110.98,110.87,6.0]
[1644506451999,4.507,110.97,110.86,43.09235869]
[1644506452200,13.5293,110.96,110.86,37.06835869]
[1644506452698,13.7793,110.96,110.86,37.06835869]
[1644506453500,4.508,110.95,110.86,37.06835869]
[1644506453903,4.758,110.95,110.86,37.06835869]
[1644506454104,4.758,110.95,110.84,0.024]
[1644506454301,13.5321,110.93,110.83,0.024]
[1644506454502,4.509,110.92,110.82,22.6109]
[1644506454702,0.25,110.95,110.82,22.6109]
[1644506454901,10.67,110.94,110.82,22.6109]
[1644506455204,20.488,110.94,110.81,0.024]
[1644506455402,13.5329,110.93,110.79,0.024]
[1644506455606,15.18,110.92,110.79,0.024]
[1644506455803,15.18,110.92,110.78,14.5512315]
[1644506456308,66.3043,110.92,110.79,39.76136765]
[1644506456507,13.5373,110.91,110.79,39.78536765]
[1644506456703,13.5373,110.91,110.8,1.66606052]
[1644506457104,13.5373,110.91,110.8,7.66606052]
[1644506457904,13.5373,110.91,110.81,15.44329202]
[1644506458204,13.5312,110.93,110.81,15.44329202]
[1644506458404,4.509,110.92,110.83,44.6175128]
[1644506458609,6.0,110.93,110.83,44.6175128]
[1644506458803,6.0,110.93,110.83,50.6175128]
[1644506458804,45.1166,110.92,110.83,50.6175128]
[1644506459005,13.5344,110.91,110.83,50.6175128]
[1644506459205,4.509,110.94,110.84,1.67163828]
[1644506459404,27.2355,110.95,110.83,50.6175128]
[1644506459605,6.0,110.94,110.83,50.8675128]
[1644506459806,6.0,110.94,110.83,52.53915108]
[1644506460206,72.3429,110.95,110.83,52.53915108]
[1644506460410,22.7275,110.95,110.83,66.06875108]
[1644506460613,18.0388,110.96,110.83,65.90609021]
[1644506460808,13.5308,110.96,110.84,14.24112039]
[1644506461210,13.5308,110.96,110.84,21.91275867]
[1644506461408,24.2008,110.96,110.83,44.6415128]
[1644506461614,6.73922154,110.95,110.83,50.8915128]
[1644506461810,4.508,110.95,110.83,50.8675128]
[1644506462009,24.2008,110.96,110.83,50.8675128]
[1644506462209,24.2008,110.96,110.83,50.8915128]
[1644506462408,24.2008,110.96,110.83,78.49957232]
[1644506462609,47.5,111.01,110.85,45.078]
[1644506462811,22.53,111.01,110.85,107.09]
[1644506463011,22.53,111.01,110.87,47.75662814]
[1644506463212,29.2597,111.04,110.88,10.67]
[1644506463412,29.2597,111.04,110.89,0.024]
[1644506463611,13.5205,111.02,110.9,13.5203]
[1644506463814,13.5205,111.02,110.91,35.18829809]
[1644506464615,15.75172154,111.02,110.91,35.18829809]
[1644506464834,15.75172154,111.02,110.91,35.43829809]
[1644506465035,13.5205,111.02,110.91,35.43829809]
[1644506465236,13.5205,111.02,110.91,36.85993637]
[1644506465536,15.75172154,111.02,110.91,35.18829809]
[1644506465736,10.67,111.01,110.91,35.18829809]
[1644506465936,13.5254,111.0,110.91,35.18829809]
[1644506466137,4.506,110.99,110.91,35.18829809]
[1644506466537,55.7547,111.01,110.91,35.43829809]
[1644506466740,4.506,111.0,110.91,35.43829809]
[1644506466939,13.5239,111.0,110.88,13.5234]
[1644506467142,4.507,110.99,110.86,23.5694]
[1644506467440,45.0928,110.99,110.86,0.024]
[1644506467641,4.507,110.98,110.86,0.25]
[1644506467840,4.757,110.98,110.86,0.024]
[1644506468041,4.757,110.98,110.85,39.24730849]
[1644506468244,0.25,110.98,110.85,45.49730849]
[1644506468440,13.7779,110.98,110.86,13.5261]
[1644506468644,13.5279,110.98,110.86,15.19773828]
[1644506468844,13.5279,110.98,110.86,13.7761]
[1644506469243,13.5279,110.98,110.86,15.44773828]
[1644506469642,4.507,110.97,110.85,45.27130849]
[1644506469842,13.528,110.96,110.85,45.49730849]
[1644506470042,4.508,110.95,110.85,45.49730849]
[1644506470542,4.758,110.95,110.85,45.49730849]
[1644506472047,13.528,110.96,110.86,1.67163828]
[1644506472244,13.5255,110.97,110.86,7.92163828]
[1644506472444,13.5255,110.97,110.86,21.62659908]
[1644506472646,13.5255,110.97,110.87,1.67163828]
[1644506472847,13.5255,110.97,110.87,1.92163828]
[1644506473045,13.5255,110.97,110.87,0.25]
[1644506473646,13.5255,110.97,110.86,27.2312608]
[1644506473847,13.5255,110.97,110.86,13.7763]
[1644506474461,19.5255,110.97,110.87,1.67163828]
[1644506474847,19.7755,110.97,110.87,1.92163828]
[1644506475747,19.7755,110.97,110.87,0.25]
[1644506476150,4.507,110.96,110.86,13.7763]
[1644506476349,4.757,110.96,110.86,13.7763]
[1644506476548,4.757,110.96,110.86,15.44793828]
[1644506476749,4.757,110.96,110.86,13.7763]
[1644506477052,52.08612154,110.96,110.85,39.27130849]
[1644506477250,62.75612154,110.96,110.85,39.24730849]
[1644506477451,62.75612154,110.96,110.83,0.024]
[1644506477649,62.75612154,110.96,110.81,29.4989]
[1644506478051,68.75612154,110.96,110.81,29.4989]
[1644506478253,68.75612154,110.96,110.81,29.7489]
[1644506478453,70.02751553,110.96,110.82,39.41967236]
[1644506478654,70.02751553,110.96,110.82,39.44367236]
[1644506478853,70.02751553,110.96,110.82,45.69367236]
[1644506479556,69.77751553,110.96,110.82,45.69367236]
[1644506479753,68.50612154,110.96,110.82,45.69367236]
[1644506480252,66.2749,110.96,110.82,45.69367236]
[1644506480452,66.2749,110.96,110.82,59.22527236]
[1644506481454,66.2749,110.96,110.82,47.36531064]
[1644506481654,66.2749,110.96,110.82,62.28093992]
[1644506481854,61.7679,110.96,110.83,14.24112039]
[1644506482057,61.7679,110.96,110.83,14.26512039]
[1644506482254,5.77939399,110.98,110.84,1.67163828]
[1644506482456,1.27139399,110.98,110.9,13.5218]
[1644506482656,1.27139399,110.99,110.91,41.49810355]
[1644506482858,28.2818,111.02,110.91,43.41974183]
[1644506482859,29.55319399,111.02,110.91,43.41974183]
[1644506483055,29.55319399,111.02,110.91,41.74810355]
[1644506483257,13.5218,111.0,110.89,0.024]
[1644506483455,15.176,110.99,110.88,0.024]
[1644506483655,18.67861553,110.99,110.86,0.024]
[1644506483857,1.27139399,110.97,110.86,0.024]
[1644506484156,8.00961553,110.97,110.85,6.0]
[1644506484355,13.5304,110.96,110.86,40.82948752]
[1644506484557,18.0384,110.96,110.86,40.82948752]
[1644506484755,13.7804,110.96,110.86,46.82948752]
[1644506484955,0.25,110.96,110.86,46.82948752]
[1644506485158,0.25,110.96,110.86,48.75663526]
[1644506485556,0.25,110.96,110.86,46.82948752]
[1644506485755,6.0,110.99,110.86,46.82948752]
[1644506485756,15.178,110.98,110.86,46.82948752]
[1644506486055,2.23122154,110.96,110.86,46.85348752]
[1644506486256,4.508,110.95,110.86,46.82948752]
[1644506486555,6.73922154,110.95,110.86,46.82948752]
[1644506486955,28.9588,110.95,110.86,46.82948752]
[1644506487357,2.23122154,110.94,110.86,40.82948752]
[1644506487658,2.23122154,110.94,110.83,0.024]
[1644506487659,4.508,110.93,110.83,0.024]
[1644506487857,4.508,110.93,110.82,29.4893]
[1644506488259,4.758,110.93,110.82,29.4893]
[1644506488458,18.2898,110.93,110.82,31.16644774]
[1644506488667,18.2898,110.93,110.83,35.76865017]
[1644506488858,18.2898,110.93,110.83,41.76865017]
[1644506489058,20.52102154,110.93,110.83,41.76865017]
[1644506489661,10.67,110.92,110.83,41.76865017]
[1644506489860,13.5348,110.91,110.83,41.76865017]
[1644506490061,18.0438,110.91,110.83,41.76865017]
[1644506490261,18.2938,110.91,110.83,41.76865017]
[1644506490661,13.7848,110.91,110.83,41.76865017]
[1644506490862,13.5348,110.91,110.83,42.01865017]
[1644506491264,13.5348,110.91,110.83,41.76865017]
[1644506491665,2.23122154,110.9,110.83,41.76865017]
[1644506491864,15.76652154,110.9,110.83,41.76865017]
[1644506492066,13.5353,110.9,110.83,41.76865017]
[1644506492267,13.7853,110.9,110.83,41.76865017]
[1644506492665,13.7853,110.9,110.83,42.01865017]
[1644506492865,13.7853,110.9,110.83,41.76865017]
[1644506493068,13.7853,110.9,110.8,0.024]
[1644506493268,13.5386,110.86,110.78,0.024]
[1644506493469,13.5386,110.86,110.77,0.024]
[1644506493667,4.511,110.85,110.75,1.23466848]
[1644506493868,4.761,110.85,110.75,1.21066848]
[1644506494067,4.761,110.85,110.76,42.11478778]
[1644506494266,0.25,110.85,110.76,42.11478778]
[1644506494869,13.5413,110.83,110.76,42.11478778]
[1644506495268,13.5413,110.83,110.74,114.324]
[1644506495269,13.7913,110.83,110.74,114.324]
[1644506495568,16.02252154,110.83,110.74,114.3]
[1644506495773,13.5449,110.8,110.74,114.3]
[1644506496174,13.7949,110.8,110.74,114.3]
[1644506496368,4.513,110.82,110.75,39.07888863]
[1644506496570,10.67,110.85,110.75,39.07888863]
[1644506496769,0.25,110.82,110.75,39.07888863]
[1644506497869,60.573,110.85,110.75,39.07888863]
[1644506498270,13.5418,110.82,110.73,0.024]
[1644506498470,13.5418,110.82,110.72,61.93326848]
[1644506498471,4.513,110.81,110.72,54.41306848]
[1644506498670,2.23122154,110.81,110.72,6.0]
[1644506498869,4.514,110.8,110.71,6.0]
[1644506499071,2.48122154,110.81,110.71,6.0]
[1644506499072,0.25,110.81,110.71,6.0]
[1644506499271,0.25,110.81,110.72,46.36666685]
[1644506499671,0.25,110.81,110.72,52.36666685]
[1644506499974,13.5463,110.79,110.72,52.36666685]
[1644506500371,13.7963,110.79,110.72,52.36666685]
[1644506500572,13.5463,110.79,110.72,52.36666685]
[1644506500772,10.67,110.83,110.72,54.02381459]
[1644506500996,13.5441,110.81,110.72,54.02381459]
[1644506501172,13.5441,110.81,110.72,52.37066685]
[1644506501378,13.5441,110.81,110.72,46.34666685]
[1644506501572,13.5441,110.81,110.7,0.024]
[1644506501872,4.514,110.8,110.69,30.0451]
[1644506502272,13.5481,110.78,110.69,30.0451]
[1644506502479,13.5481,110.78,110.69,6.0]
[1644506502678,2.23122154,110.77,110.69,6.0]
[1644506502984,2.23122154,110.77,110.65,0.024]
[1644506502985,15.185,110.76,110.65,0.024]
[1644506503179,15.185,110.76,110.64,0.024]
[1644506503378,2.23122154,110.75,110.61,1.23466848]
[1644506503578,4.517,110.74,110.62,36.86765394]
[1644506503783,4.767,110.74,110.62,36.84365394]
[1644506503979,13.8061,110.74,110.62,51.53392762]
[1644506504179,13.8061,110.74,110.63,12.79076599]
[1644506504377,19.5561,110.74,110.64,44.99172283]
[1644506504780,4.517,110.73,110.64,50.99172283]
[1644506504983,6.0,110.74,110.64,50.99172283]
[1644506505279,13.5569,110.71,110.64,50.99172283]
[1644506505480,13.5569,110.71,110.61,0.024]
[1644506505682,4.518,110.7,110.6,48.0595]
[1644506505879,4.768,110.7,110.6,48.0595]
[1644506506381,13.5607,110.68,110.58,0.024]
[1644506506581,13.5607,110.68,110.57,47.27121622]
[1644506506781,4.519,110.67,110.57,47.27121622]
[1644506507283,4.769,110.67,110.56,13.01312594]
[1644506507486,13.5649,110.65,110.55,0.024]
[1644506507684,13.5649,110.65,110.53,61.34292594]
[1644506507685,3.1355,110.65,110.57,0.31690087]
[1644506507881,9.748,110.68,110.56,15.43882595]
[1644506508082,9.748,110.68,110.58,27.7388336]
[1644506508282,9.748,110.68,110.59,41.56148278]
[1644506508490,9.748,110.68,110.59,70.9052419]
[1644506508682,9.748,110.68,110.59,93.53789036]
[1644506508984,9.748,110.68,110.61,40.68478062]
[1644506509382,9.748,110.68,110.63,47.99312771]
[1644506509683,15.188,110.75,110.64,86.0]
[1644506509886,15.186,110.8,110.65,38.17901923]
[1644506510084,15.186,110.8,110.65,96.49261543]
[1644506510286,15.186,110.8,110.66,0.024]
[1644506510684,15.186,110.8,110.65,100.58946769]
[1644506510984,13.5503,110.79,110.67,39.21872772]
[1644506511187,15.185,110.78,110.67,39.21872772]
[1644506511387,10.67,110.77,110.63,24.0785]
[1644506511585,4.516,110.76,110.63,24.0785]
[1644506511786,10.67,110.77,110.63,31.75564774]
[1644506511988,24.2226,110.77,110.64,18.0675]
[1644506512187,13.5526,110.77,110.64,18.0675]
[1644506512487,13.5526,110.77,110.66,40.62200387]
[1644506512685,13.5526,110.77,110.64,57.07030016]
[1644506512890,4.516,110.76,110.64,6.0]
[1644506513089,17.41722154,110.76,110.64,6.25]
[1644506513289,15.436,110.76,110.64,6.0]
[1644506513495,13.5551,110.75,110.61,15.40787761]
[1644506513712,10.67,110.74,110.62,48.15848576]
[1644506513912,4.517,110.73,110.6,161.8767]
[1644506514114,15.187,110.73,110.6,114.3]
[1644506514311,17.66822154,110.73,110.6,114.3]
[1644506514513,2.23122154,110.72,110.6,114.3]
[1644506514711,18.0773,110.71,110.6,114.3]
[1644506514911,13.5593,110.71,110.61,46.871826]
[1644506515112,4.768,110.73,110.61,46.871826]
[1644506515311,0.25,110.73,110.63,45.16527418]
[1644506515514,4.517,110.74,110.63,45.16527418]
[1644506515713,16.67,110.75,110.63,45.16527418]
[1644506515913,2.23122154,110.73,110.63,45.16527418]
[1644506516114,13.5559,110.74,110.63,45.41527418]
[1644506516712,15.78712154,110.74,110.63,45.41527418]
[1644506516911,15.78712154,110.74,110.63,45.16527418]
[1644506517113,4.517,110.73,110.63,45.16527418]
[1644506517314,13.5586,110.71,110.63,45.16527418]
[1644506517712,13.8086,110.71,110.63,45.16527418]
[1644506517914,16.03982154,110.71,110.63,45.16527418]
[1644506518216,13.8086,110.71,110.63,51.16527418]
[1644506518414,13.8086,110.71,110.63,45.16527418]
[1644506518613,16.03982154,110.71,110.63,45.16527418]
[1644506518812,13.8086,110.71,110.6,24.2708]
[1644506519013,13.8086,110.71,110.6,6.25]
[1644506519214,2.23122154,110.7,110.6,6.0]
[1644506519413,13.5614,110.68,110.58,4.517]
[1644506519815,13.8114,110.68,110.59,43.91577334]
[1644506520214,13.8114,110.68,110.59,49.91577334]
[1644506520820,13.8114,110.68,110.59,48.23308324]
[1644506521622,13.8114,110.68,110.59,42.23308324]
[1644506521822,13.8114,110.68,110.59,48.23308324]
[1644506522121,2.23122154,110.67,110.59,48.23308324]
[1644506522324,2.48122154,110.67,110.57,47.4945]
[1644506522521,18.3317,110.67,110.57,47.4945]
[1644506522725,18.3317,110.67,110.54,24.7881]
[1644506522923,18.3317,110.67,110.54,30.8121]
[1644506523125,10.67,110.66,110.54,30.8121]
[1644506523329,10.92,110.66,110.55,37.82845362]
[1644506523725,10.92,110.66,110.55,44.07845362]
[1644506523929,10.92,110.66,110.55,45.50696896]
[1644506524327,10.92,110.66,110.55,37.82845362]
[1644506524530,13.5671,110.64,110.55,37.82845362]
[1644506524728,4.521,110.63,110.55,37.82845362]
[1644506525027,2.23122154,110.63,110.55,37.82845362]
[1644506525228,4.519,110.64,110.55,37.82845362]
[1644506525528,13.5667,110.64,110.57,42.45876112]
[1644506525726,19.5667,110.64,110.57,42.45876112]
[1644506526129,19.5667,110.64,110.57,41.95876112]
[1644506526828,19.5667,110.64,110.53,0.024]
[1644506527027,6.0,110.64,110.52,55.23101534]
[1644506527230,4.521,110.68,110.58,1.67851534]
[1644506527429,72.6909,110.71,110.58,1.67851534]
[1644506527430,4.519,110.74,110.58,1.67851534]
[1644506527629,15.189,110.74,110.6,38.00089695]
[1644506527828,10.67,110.74,110.6,48.76789695]
[1644506528028,10.67,110.74,110.61,0.024]
[1644506528229,13.557,110.72,110.61,0.024]
[1644506528432,13.557,110.72,110.62,1.67851534]
[1644506528630,19.557,110.72,110.63,36.53133136]
[1644506528828,19.557,110.72,110.63,36.78133136]
[1644506529032,4.517,110.76,110.64,1.67851534]
[1644506529236,13.5499,110.78,110.65,44.93127552]
[1644506529529,352.20865324,110.8,110.65,72.17282288]
[1644506529730,352.20865324,110.8,110.66,9.53818509]
[1644506529930,4.515,110.82,110.67,51.84634987]
[1644506530232,6.0,110.82,110.7,48.80812711]
[1644506530430,4.514,110.81,110.7,48.83212711]
[1644506530631,13.5463,110.81,110.71,0.024]
[1644506530830,4.514,110.82,110.71,0.024]
[1644506531034,22.7093,110.83,110.72,39.85415723]
[1644506531232,57.08609399,110.86,110.73,13.5416]